fUSD/lending_fUSD_20240127
["ID","MTS","AMOUNT","RATE_DAILY","PERIOD"]
[312868809,1706383840599,-522.4516094,0.00039999,15]
[312868811,1706383840608,-500.0,0.00039999,15]
[312868813,1706383840617,-500.0,0.00039999,15]
[312868815,1706383840626,-219.26801017,0.00039999,15]
[312868817,1706383840636,-500.0,0.00039999,15]
[312868819,1706383840645,-275.2013341,0.00039999,15]
[312868821,1706383840654,-500.0,0.00039999,15]
[312868823,1706383840663,-500.0,0.00039999,15]
[312868825,1706383840672,-500.0,0.00039999,15]
[312868827,1706383840682,-500.0,0.00039999,15]
[312868829,1706383840692,-500.0,0.00039999,15]
[312868831,1706383840701,-500.0,0.00039999,15]
[312868833,1706383840710,-500.0,0.00039999,15]
[312868835,1706383840719,-500.0,0.00039999,15]
[312868837,1706383840728,-500.0,0.00039999,15]
[312868839,1706383840737,-500.0,0.00039999,15]
[312868841,1706383840747,-500.0,0.00039999,15]
[312868843,1706383840757,-500.0,0.00039999,15]
[312868845,1706383840766,-489.39149993,0.00039999,15]
[312868847,1706383840775,-500.0,0.00039999,15]
[312868849,1706383840784,-407.36856397,0.00039999,15]
[312868851,1706383840793,-5418.17,0.0004,7]
[312868853,1706383840802,-3311.44,0.0004,7]
[312868855,1706383840811,-637.40912439,0.0004,2]
[312868857,1706383840820,-152.71,0.00040349,15]
[312868859,1706383840830,-150.0,0.00040385,2]
[312868861,1706383840839,-150.0,0.00040517,2]
[312868863,1706383840847,-150.0,0.00040519,2]
[312868865,1706383840856,-1656.9700594,0.00040571,9]
[312868867,1706383840865,-650.7,0.00040574,2]
[312868869,1706383840874,-150.0,0.00040576,2]
[312868871,1706383840883,-181.59822832,0.00040597,2]
[312868873,1706383840893,-150.0,0.00040599,2]
[312868875,1706383840902,-1942.53,0.000406,7]
[312868877,1706383840910,-150.28,0.00040612,2]
[312868879,1706383840919,-150.1,0.00040623,2]
[312868881,1706383840929,-150.0,0.0004077,2]
[312868883,1706383840938,-150.0,0.0004079,2]
[312868885,1706383840947,-300.0,0.00040911,2]
[312868887,1706383840955,-150.0,0.00040944,2]
[312868889,1706383840965,-1500.0,0.00040966,2]
[312868891,1706383840973,-150.0,0.00040967,2]
[312868893,1706383840983,-150.0,0.00040984,2]
[312868895,1706383840992,-150.0,0.00040997,2]
[312868897,1706383841001,-950.0,0.00041,3]
[312868899,1706383841010,-151.17,0.00041,2]
[312868901,1706383841019,-151.17,0.00041,2]
[312868903,1706383841028,-151.17,0.00041,2]
[312868905,1706383841037,-151.17,0.00041,2]
[312868907,1706383841047,-151.17,0.00041,2]
[312868909,1706383841056,-151.17,0.00041,2]
[312868911,1706383841065,-151.17,0.00041,2]
[312868913,1706383841074,-151.17,0.00041,2]
[312868915,1706383841084,-151.17,0.00041,2]
[312868917,1706383841094,-151.17,0.00041,2]
[312868919,1706383841106,-151.17,0.00041,2]
[312868921,1706383841115,-151.17,0.00041,2]
[312868935,1706383841228,-151.17,0.00041,2]
[312868937,1706383841237,-151.17,0.00041,2]
[312868939,1706383841247,-151.17,0.00041,2]
[312868941,1706383841256,-151.17,0.00041,2]
[312868943,1706383841265,-151.17,0.00041,2]
[312868945,1706383841274,-151.17,0.00041,2]
[312868947,1706383841283,-151.17,0.00041,2]
[312868949,1706383841292,-151.17,0.00041,2]
[312868951,1706383841301,-151.17,0.00041,2]
[312868953,1706383841310,-151.17,0.00041,2]
[312868955,1706383841319,-151.17,0.00041,2]
[312868956,1706383841328,-151.17,0.00041,2]
[312868957,1706383841337,-151.17,0.00041,2]
[312868958,1706383841346,-151.17,0.00041,2]
[312868959,1706383841355,-298.28962295,0.00041003,2]
[312868960,1706383841364,-300.0,0.0004103,2]
[312868961,1706383841373,-274.92539579,0.00041038,2]
[312868962,1706383841382,-1500.0,0.00041061,2]
[312868963,1706383841391,-185.537879,0.00041096,14]
[312868965,1706383841401,-153.84,0.00041096,2]
[312868967,1706383841411,-150.0,0.000411,2]
[312868969,1706383841420,-300.0,0.00041122,2]
[312868971,1706383841429,-150.0,0.00041125,2]
[312868973,1706383841438,-151.17,0.00041129,2]
[312868975,1706383841448,-1500.0,0.00041139,2]
[312868977,1706383841457,-150.0,0.0004115,2]
[312868979,1706383841467,-150.0,0.00041154,2]
[312868981,1706383841476,-150.0,0.00041164,2]
[312868983,1706383841485,-150.0,0.00041178,2]
[312868985,1706383841494,-150.0,0.00041179,2]
[312868987,1706383841503,-1500.0,0.00041197,2]
[312868989,1706383841512,-150.0,0.00041206,2]
[312868991,1706383841521,-150.0,0.00041215,2]
[312868993,1706383841530,-150.0,0.00041229,2]
[312868995,1706383841539,-150.0,0.00041257,2]
[312868997,1706383841548,-150.0,0.00041262,2]
[312868999,1706383841558,-1500.0,0.00041278,2]
[312869001,1706383841566,-1500.0,0.00041278,2]
[312869003,1706383841575,-150.0,0.00041288,2]
[312869005,1706383841584,-1500.0,0.00041314,2]
[312869007,1706383841594,-150.0,0.00041329,2]
[312869009,1706383841603,-150.0,0.00041329,2]
[312869011,1706383841611,-150.0,0.0004133,2]
[312869013,1706383841621,-1500.0,0.00041331,2]
[312869015,1706383841630,-150.0,0.00041335,2]
[312869016,1706383841639,-150.0,0.0004135,2]
[312869018,1706383841648,-150.0,0.00041364,2]
[312869021,1706383841659,-1500.0,0.0004137,2]
[312869022,1706383841668,-150.0,0.00041381,2]
[312869024,1706383841678,-150.0,0.00041399,2]
[312869027,1706383841687,-150.0,0.00041404,2]
[312869028,1706383841696,-150.0,0.00041406,2]
[312869030,1706383841705,-150.0,0.0004141,2]
[312869032,1706383841714,-150.0,0.00041419,2]
[312869034,1706383841724,-150.0,0.00041429,2]
[312869037,1706383841733,-150.0,0.00041429,2]
[312869039,1706383841742,-150.0,0.0004143,2]
[312869040,1706383841751,-150.0,0.00041431,2]
[312869042,1706383841760,-150.0,0.00041435,2]
[312869044,1706383841770,-150.0,0.00041439,2]
[312869046,1706383841779,-150.0,0.00041442,2]
[312869048,1706383841788,-150.0,0.00041446,2]
[312869050,1706383841797,-150.0,0.0004145,2]
[312869052,1706383841806,-150.0,0.00041465,2]
[312869055,1706383841815,-150.0,0.00041484,2]
[312869057,1706383841824,-150.0,0.00041485,2]
[312869058,1706383841833,-1500.0,0.00041486,2]
[312869061,1706383841843,-44133.5693,0.00041494,5]
[312869063,1706383841851,-150.0,0.00041497,2]
[312869065,1706383841861,-150.0,0.00041506,2]
[312869067,1706383841870,-150.0,0.0004152,2]
[312869069,1706383841879,-150.0,0.00041521,2]
[312869070,1706383841889,-150.0,0.00041522,2]
[312869072,1706383841898,-150.0,0.00041523,2]
[312869074,1706383841907,-150.0,0.00041534,2]
[312869076,1706383841917,-150.0,0.00041536,2]
[312869078,1706383841926,-1500.0,0.00041538,2]
[312869080,1706383841935,-150.0,0.00041552,2]
[312869082,1706383841944,-150.0,0.00041559,2]
[312869084,1706383841954,-150.0,0.00041575,2]
[312869086,1706383841963,-150.0,0.00041582,2]
[312869088,1706383841972,-150.0,0.00041586,2]
[312869090,1706383841981,-8030.242805,0.000416,2]
[312869092,1706383841991,-150.0,0.00041614,2]
[312869094,1706383842000,-150.0,0.00041622,2]
[312869096,1706383842009,-150.0,0.00041623,2]
[312869098,1706383842018,-150.0,0.00041624,2]
[312869100,1706383842027,-150.0,0.00041638,2]
[312869102,1706383842036,-150.0,0.00041643,2]
[312869104,1706383842045,-150.0,0.00041658,2]
[312869106,1706383842055,-150.0,0.00041672,2]
[312869109,1706383842064,-150.0,0.00041679,2]
[312869111,1706383842072,-150.0,0.00041682,2]
[312869113,1706383842082,-150.0,0.00041686,2]
[312869115,1706383842092,-150.0,0.00041695,2]
[312869117,1706383842106,-767.00560775,0.00041698,15]
[312869119,1706383842115,-158.06708068,0.00041698,7]
[312869121,1706383842123,-150.01,0.00041699,2]
[312869123,1706383842132,-3302.58843747,0.00041699,2]
[312869125,1706383842142,-5989.59775095,0.00041738,4]
[312869127,1706383842151,-150.28,0.0004174,2]
[312869129,1706383842160,-193.19,0.0004179,10]
[312869131,1706383842169,-360.82,0.0004179,10]
[312869133,1706383842179,-300.68,0.0004179,10]
[312869135,1706383842189,-3000.0,0.000418,32]
[312869137,1706383842199,-3000.0,0.0004181,32]
[312869139,1706383842208,-5512.542004,0.0004182,32]
[312869141,1706383842217,-150.0,0.00041877,2]
[312869143,1706383842226,-151.17,0.0004189,2]
[312869145,1706383842236,-189.54587012,0.00041897,4]
[312869147,1706383842245,-355.96719696,0.00041897,4]
[312869149,1706383842254,-260.50924699,0.00041897,4]
[312869151,1706383842264,-1766.13596665,0.00041897,4]
[312869153,1706383842273,-1615.17622381,0.00041897,4]
[312869155,1706383842282,-200.15618346,0.00041897,4]
[312869157,1706383842291,-155.31278064,0.00041897,4]
[312869159,1706383842300,-306.63607534,0.00041898,3]
[312869161,1706383842309,-212.84004961,0.00041898,3]
[312869163,1706383842318,-155.0,0.00041899,4]
[312869165,1706383842327,-155.0,0.00041899,4]
[312869167,1706383842336,-155.0,0.00041899,4]
[312869169,1706383842345,-25128.42920074,0.000419,4]
[312869171,1706383842354,-158.37,0.000419,2]
[312869173,1706383842363,-158.37,0.000419,2]
[312869175,1706383842372,-158.37,0.000419,2]
[312869177,1706383842381,-158.37,0.000419,2]
[312869179,1706383842390,-152.9,0.000419,4]
[312869181,1706383842399,-152.9,0.000419,4]
[312869183,1706383842408,-2000.0,0.00042,2]
[312869185,1706383842417,-2921.55140385,0.00042,35]
[312869187,1706383842427,-200.0,0.00042,2]
[312869189,1706383842435,-3083.66523063,0.00042045,3]
[312869191,1706383842444,-278.0,0.0004209,2]
[312869193,1706383842454,-221.0,0.0004209,2]
[312869195,1706383842463,-218.49463445,0.00042162,30]
[312869197,1706383842472,-6304.60792659,0.00042162,2]
[312869199,1706383842480,-5082.90849452,0.00042162,2]
[312869201,1706383842489,-1167.71397434,0.00042162,3]
[312869203,1706383842498,-18661.75211696,0.00042162,3]
[312869204,1706383842507,-3777.23830595,0.00042162,3]
[312869206,1706383842516,-500.0,0.00042162,6]
[312869208,1706383842525,-500.0,0.00042162,6]
[312869211,1706383842535,-500.0,0.00042162,6]
[312869212,1706383842544,-500.0,0.00042162,6]
[312869214,1706383842553,-500.0,0.00042162,6]
[312869216,1706383842562,-500.0,0.00042162,6]
[312869218,1706383842570,-500.0,0.00042162,6]
[312869220,1706383842580,-500.0,0.00042162,6]
[312869222,1706383842589,-500.0,0.00042162,6]
[312869224,1706383842600,-500.0,0.00042162,6]
[312869226,1706383842608,-500.0,0.00042162,6]
[312869228,1706383842618,-500.0,0.00042162,6]
[312869230,1706383842627,-500.0,0.00042162,6]
[312869232,1706383842636,-500.0,0.00042162,6]
[312869235,1706383842646,-500.0,0.00042162,6]
[312869237,1706383842654,-500.0,0.00042162,6]
[312869239,1706383842664,-500.0,0.00042162,6]
[312869241,1706383842673,-500.0,0.00042162,6]
[312869243,1706383842682,-500.0,0.00042162,6]
[312869244,1706383842691,-500.0,0.00042162,6]
[312869247,1706383842700,-500.0,0.00042162,6]
[312869249,1706383842709,-500.0,0.00042162,6]
[312869251,1706383842718,-500.0,0.00042162,6]
[312869252,1706383842727,-500.0,0.00042162,6]
[312869255,1706383842736,-500.0,0.00042162,6]
[312869256,1706383842746,-500.0,0.00042162,6]
[312869258,1706383842755,-500.0,0.00042162,6]
[312869259,1706383842764,-500.0,0.00042162,6]
[312869260,1706383842773,-500.0,0.00042162,6]
[312869261,1706383842781,-500.0,0.00042162,6]
[312869262,1706383842790,-500.0,0.00042162,6]
[312869263,1706383842799,-500.0,0.00042162,6]
[312869264,1706383842807,-500.0,0.00042162,6]
[312869265,1706383842816,-500.0,0.00042162,6]
[312869267,1706383842825,-500.0,0.00042162,6]
[312869269,1706383842834,-500.0,0.00042162,6]
[312869271,1706383842846,-871.837296,0.00042162,6]
[312869273,1706383842855,-5418.17,0.000422,7]
[312869275,1706383842864,-3311.44,0.000422,7]
[312869277,1706383842873,-171.75011329,0.00042458,4]
[312869279,1706383842882,-1942.53,0.000425,7]
[312869281,1706383842891,-4182.12264389,0.00042627,17]
[312869283,1706383842900,-650.7,0.00042838,2]
[312869285,1706383842910,-150.28,0.00042869,2]
[312869287,1706383842919,-361.71169662,0.00042887,4]
[312869289,1706383842928,-156.40585233,0.00042887,4]
[312869291,1706383842937,-151.17,0.0004299,2]
[312869293,1706383842946,-2000.0,0.00043,2]
[312869295,1706383842955,-86401.16528484,0.00043,30]
[312869297,1706383842964,-1000.0,0.00043,3]
[312869299,1706383842973,-298.26,0.000436,4]
[312869301,1706383842982,-298.26,0.000436,4]
[312869303,1706383842991,-298.26,0.000436,4]
[312869305,1706383843000,-298.26,0.000436,4]
[312869307,1706383843008,-298.26,0.000436,4]
[312869309,1706383843017,-298.26,0.000436,4]
[312869311,1706383843026,-298.26,0.000436,4]
[312869313,1706383843035,-298.26,0.000436,4]
[312869315,1706383843044,-298.26,0.000436,4]
[312869317,1706383843053,-298.26,0.000436,4]
[312869319,1706383843062,-298.26,0.000436,4]
[312869321,1706383843071,-298.26,0.000436,4]
[312869322,1706383843080,-298.26,0.000436,4]
[312869324,1706383843089,-298.26,0.000436,4]
[312869327,1706383843101,-298.26,0.000436,4]
[312869329,1706383843112,-298.26,0.000436,4]
[312869330,1706383843121,-298.26,0.000436,4]
[312869332,1706383843130,-298.26,0.000436,4]
[312869334,1706383843139,-298.26,0.000436,4]
[312869337,1706383843149,-298.26,0.000436,4]
[312869338,1706383843158,-150.0,0.00043652,30]
[312869340,1706383843167,-151.08297633,0.00043697,11]
[312869342,1706383843176,-6620.0,0.000438,2]
[312869343,1706383843186,-206.0,0.00043951,35]
[312869344,1706383843195,-150.28,0.00043997,2]
[312869345,1706383843205,-2000.0,0.00044,2]
[312869346,1706383843214,-802.82707846,0.00044,120]
[312869347,1706383843223,-152.71,0.00044085,15]
[312869348,1706383843233,-3311.44,0.000441,7]
[312869349,1706383843242,-201.0477014,0.000441,2]
[312869350,1706383843251,-5418.17,0.000442,7]
[312869351,1706383843260,-1942.53,0.000443,7]
[312869352,1706383843269,-165.98043855,0.00044329,23]
[312869353,1706383843278,-1380.1873902,0.000444,38]
[312869354,1706383843287,-556.14333485,0.0004498,3]
[312869355,1706383843296,-4224.13536304,0.00045,17]
[312869357,1706383843305,-155.0,0.00045,2]
[312869359,1706383843314,-2000.0,0.00045,2]
[312869360,1706383843322,-498.0,0.00045,5]
[312869361,1706383843331,-252.81337463,0.00045,2]
[312869363,1706383843340,-1050.0,0.00045,3]
[312869364,1706383843350,-232.0,0.00045,2]
[312869365,1706383843360,-1990.0,0.00045,2]
[312869366,1706383843369,-1656.9700594,0.00045014,12]
[312869367,1706383843378,-450.0,0.0004502,5]
[312869368,1706383843388,-650.7,0.00045101,2]
[312869369,1706383843397,-150.28,0.00045125,2]
[312869370,1706383843407,-6620.54083221,0.000452,2]
[312869371,1706383843416,-4182.12264389,0.00045445,20]
[312869372,1706383843425,-5989.59775095,0.00045506,7]
[312869373,1706383843434,-2000.0,0.00046,2]
[312869374,1706383843444,-150.28,0.00046253,2]
[312869375,1706383843453,-152.0,0.00046567,3]
[312869376,1706383843462,-1000.0,0.000466,2]
[312869377,1706383843471,-2257.09,0.00046849,120]
[312869378,1706383843480,-2000.0,0.00047,2]
[312869380,1706383843489,-1100.0,0.00047,3]
[312869382,1706383843499,-151.0,0.00047306,2]
[312869384,1706383843508,-650.7,0.00047365,2]
[312869385,1706383843517,-150.28,0.00047381,2]
[312869386,1706383843526,-158.37,0.000478,2]
[312869387,1706383843535,-158.37,0.000478,2]
[312869388,1706383843544,-158.37,0.000478,2]
[312869389,1706383843554,-158.37,0.000478,2]
[312869390,1706383843660,-152.9,0.000478,5]
[312869391,1706383843670,-152.9,0.000478,5]
[312869392,1706383843679,-152.71,0.00047821,15]
[312869393,1706383843688,-20184.61665648,0.000479,28]
[312869394,1706383843697,-300.0,0.0004799,2]
[312869395,1706383843706,-238.0,0.0004799,2]
[312869396,1706383843716,-10318.34783038,0.00048,2]
[312869397,1706383843725,-2000.0,0.00048,2]
[312869398,1706383843734,-4182.12264389,0.00048264,24]
[312869399,1706383843743,-150.28,0.00048509,2]
[312869400,1706383843752,-298.26,0.000487,6]
[312869401,1706383843762,-298.26,0.000487,6]
[312869402,1706383843771,-298.26,0.000487,6]
[312869403,1706383843780,-298.26,0.000487,6]
[312869404,1706383843789,-298.26,0.000487,6]
[312869405,1706383843798,-298.26,0.000487,6]
[312869406,1706383843808,-298.26,0.000487,6]
[312869407,1706383843817,-298.26,0.000487,6]
[312869408,1706383843827,-298.26,0.000487,6]
[312869409,1706383843838,-298.26,0.000487,6]
[312869410,1706383843850,-298.26,0.000487,6]
[312869411,1706383843860,-298.26,0.000487,6]
[312869412,1706383843869,-298.26,0.000487,6]
[312869413,1706383843878,-298.26,0.000487,6]
[312869414,1706383843886,-298.26,0.000487,6]
[312869415,1706383843896,-298.26,0.000487,6]
[312869416,1706383843906,-298.26,0.000487,6]
[312869417,1706383843915,-298.26,0.000487,6]
[312869418,1706383843924,-298.26,0.000487,6]
[312869419,1706383843932,-298.26,0.000487,6]
[312869420,1706383843941,-530.33480688,0.00048745,30]
[312869421,1706383843950,-500.0,0.000489,5]
[312869422,1706383843959,-280.15476187,0.000489,2]
[312869423,1706383843968,-280.15476168,0.000489,2]
[312869424,1706383843977,-280.15476168,0.000489,2]
[312869425,1706383843986,-280.15476168,0.000489,2]
[312869427,1706383843995,-280.15476168,0.000489,2]
[312869429,1706383844004,-280.15476168,0.000489,2]
[312869431,1706383844013,-280.15476168,0.000489,2]
[312869433,1706383844022,-280.15476168,0.000489,2]
[312869435,1706383844031,-280.15476168,0.000489,2]
[312869437,1706383844040,-280.15476168,0.000489,2]
[312869438,1706383844049,-280.15476168,0.000489,2]
[312869439,1706383844059,-280.15476168,0.000489,2]
[312869440,1706383844069,-280.15476168,0.000489,2]
[312869441,1706383844078,-280.15476168,0.000489,2]
[312869442,1706383844086,-280.15476168,0.000489,2]
[312869443,1706383844097,-151.08297633,0.00048921,13]
[312869444,1706383844109,-1072.52397639,0.00049,2]
[312869445,1706383844118,-1150.0,0.00049,3]
[312869446,1706383844127,-1380.1873902,0.0004915,45]
[312869447,1706383844137,-1000.0,0.000493,2]
[312869448,1706383844145,-206.0,0.000493,43]
[312869449,1706383844155,-151.0,0.00049315,14]
[312869450,1706383844164,-151.0,0.00049315,14]
[312869451,1706383844173,-151.0,0.00049315,14]
[312869452,1706383844182,-151.0,0.00049315,14]
[312869453,1706383844192,-151.0,0.00049315,14]
[312869454,1706383844201,-151.0,0.00049315,14]
[312869455,1706383844211,-151.0,0.00049315,14]
[312869456,1706383844220,-151.0,0.00049315,14]
[312869457,1706383844229,-151.0,0.00049315,14]
[312869458,1706383844239,-151.0,0.00049315,14]
[312869459,1706383844248,-151.0,0.00049315,14]
[312869460,1706383844257,-151.0,0.00049315,14]
[312869461,1706383844267,-151.0,0.00049315,14]
[312869462,1706383844276,-151.0,0.00049315,14]
[312869463,1706383844285,-151.0,0.00049315,14]
[312869464,1706383844294,-151.0,0.00049315,14]
[312869465,1706383844303,-151.0,0.00049315,14]
[312869466,1706383844313,-151.0,0.00049315,14]
[312869467,1706383844322,-151.0,0.00049315,14]
[312869468,1706383844330,-151.0,0.00049315,14]
[312869469,1706383844340,-151.0,0.00049315,14]
[312869470,1706383844349,-151.0,0.00049315,14]
[312869471,1706383844358,-151.0,0.00049315,14]
[312869472,1706383844367,-151.0,0.00049315,14]
[312869473,1706383844376,-151.0,0.00049315,14]
[312869474,1706383844385,-151.0,0.00049315,14]
[312869475,1706383844394,-151.0,0.00049315,14]
[312869476,1706383844403,-151.0,0.00049315,14]
[312869477,1706383844412,-151.0,0.00049315,14]
[312869478,1706383844422,-151.0,0.00049315,14]
[312869479,1706383844431,-151.0,0.00049315,14]
[312869480,1706383844440,-151.0,0.00049315,14]
[312869481,1706383844449,-151.0,0.00049315,14]
[312869482,1706383844458,-151.0,0.00049315,14]
[312869483,1706383844467,-151.0,0.00049315,14]
[312869484,1706383844476,-151.0,0.00049315,14]
[312869485,1706383844485,-151.0,0.00049315,14]
[312869486,1706383844495,-151.0,0.00049315,14]
[312869487,1706383844503,-151.0,0.00049315,14]
[312869488,1706383844512,-151.0,0.00049315,14]
[312869489,1706383844521,-151.0,0.00049315,14]
[312869490,1706383844531,-151.0,0.00049315,14]
[312869491,1706383844540,-151.0,0.00049315,14]
[312869492,1706383844550,-151.0,0.00049315,14]
[312869493,1706383844559,-151.0,0.00049315,14]
[312869494,1706383844568,-151.0,0.00049315,14]
[312869495,1706383844577,-151.0,0.00049315,14]
[312869496,1706383844587,-293.271511,0.00049315,14]
[312869497,1706383844599,-1656.9700594,0.00049457,14]
[312869498,1706383844609,-58000.0,0.00049626,7]
[312869499,1706383844618,-650.7,0.00049629,2]
[312869500,1706383844628,-58000.0,0.00049635,7]
[312869501,1706383844638,-150.28,0.00049637,2]
[312869502,1706383844647,-58000.0,0.00049644,7]
[312869503,1706383844657,-58000.0,0.00049652,7]
[312869504,1706383844668,-58000.0,0.00049661,7]
[312869505,1706383844677,-58000.0,0.0004967,7]
[312869506,1706383844687,-58000.0,0.00049679,7]
[312869507,1706383844697,-165.98043855,0.00049686,43]
[312869508,1706383844708,-58000.0,0.00049688,7]
[312869509,1706383844718,-58000.0,0.00049696,7]
[312869510,1706383844727,-322.75439056,0.00049705,7]
[312869511,1706383844736,-5462.7233565,0.00049713,7]
[312869512,1706383844746,-9231.36167825,0.00049713,7]
[312869513,1706383844756,-221.28656957,0.00049713,7]
[312869514,1706383844765,-2313.81320559,0.00049713,7]
[312869515,1706383844774,-183.97263177,0.00049713,7]
[312869516,1706383844785,-964.14254112,0.00049713,7]
[312869517,1706383844795,-277.51415824,0.00049713,7]
[312869518,1706383844804,-152.0,0.00049723,4]
[312869519,1706383844814,-181.59822832,0.00049897,2]
[312869520,1706383844823,-356874.1069453,0.000499,7]
[312869521,1706383844832,-450.0,0.0004998,5]
[312869522,1706383844842,-497.80697254,0.0004998,5]
[312869523,1706383844852,-5800.0,0.00049983,7]
[312869524,1706383844863,-5800.0,0.00049992,7]
[312869525,1706383844872,-3710.20707619,0.0005,4]
[312869526,1706383844882,-2957.44332466,0.0005,4]
[312869527,1706383844892,-6885.8503082,0.0005,4]
[312869528,1706383844902,-864.43443322,0.0005,2]
[312869529,1706383844913,-1000.0,0.0005,2]
[312869530,1706383844922,-1000.0,0.0005,2]
[312869531,1706383844933,-1000.0,0.0005,2]
[312869532,1706383844944,-1000.0,0.0005,2]
[312869533,1706383844953,-150.0,0.0005,2]
[312869534,1706383844962,-2000.0,0.0005,2]
[312869535,1706383844973,-359.7710561,0.0005,120]
[312869536,1706383844981,-489231.0728184,0.0005,60]
[312869537,1706383844991,-5800.0,0.0005,7]
[312869538,1706383845000,-1000.0,0.0005,22]
[312869539,1706383845009,-2003.92206238,0.0005,5]
[312869540,1706383845019,-500.0,0.0005,30]
[312869541,1706383845028,-17123.0,0.0005,8]
[312869542,1706383845038,-56199.24170805,0.0005,120]
[312869543,1706383845047,-783.34,0.0005,120]
[312869544,1706383845056,-232.0,0.0005,30]
[312869545,1706383845065,-1990.0,0.0005,30]
[312869546,1706383845074,-5418.17,0.000503,7]
[312869547,1706383845083,-150.0,0.000505,3]
[312869548,1706383845092,-3311.44,0.000505,7]
[312869549,1706383845102,-2902.047267,0.000505,30]
[312869550,1706383845114,-1942.53,0.000507,7]
[312869551,1706383845124,-155.0,0.000507,60]
[312869552,1706383845133,-150.28,0.00050765,2]
[312869553,1706383845142,-150.0,0.00051,4]
[312869554,1706383845152,-2000.0,0.00051,2]
[312869555,1706383845161,-1200.0,0.00051,3]
[312869556,1706383845170,-4182.12264389,0.00051082,27]
[312869557,1706383845180,-300.00000099,0.000513,30]
[312869558,1706383845190,-150.0,0.000515,5]
[312869559,1706383845199,-152.71,0.00051557,120]
[312869560,1706383845208,-151.74598536,0.0005166,20]
[312869561,1706383845219,-151.74598536,0.0005166,20]
[312869562,1706383845228,-151.74598536,0.0005166,21]
[312869563,1706383845237,-151.74598536,0.0005166,19]
[312869564,1706383845246,-151.74598536,0.0005166,19]
[312869565,1706383845255,-151.74598536,0.0005166,20]
[312869566,1706383845264,-151.74598536,0.0005166,21]
[312869567,1706383845274,-151.74598536,0.0005166,20]
[312869568,1706383845284,-151.74598536,0.0005166,19]
[312869569,1706383845293,-151.74598536,0.0005166,19]
[312869570,1706383845301,-151.74598536,0.0005166,21]
[312869571,1706383845311,-151.74598536,0.0005166,18]
[312869572,1706383845320,-299.99999901,0.000517,30]
[312869573,1706383845330,-150.0,0.000517,22]
[312869574,1706383845339,-108010.581883,0.0005178,7]
[312869575,1706383845349,-155.0,0.000518,60]
[312869576,1706383845359,-650.7,0.00051893,2]
[312869577,1706383845368,-150.28,0.00051893,2]
[312869578,1706383845377,-788.0,0.0005199,2]
[312869579,1706383845387,-625.0,0.0005199,2]
[312869580,1706383845396,-2206.0,0.00052,60]
[312869581,1706383845405,-2089.93732669,0.00052,2]
[312869582,1706383845414,-150.0,0.00052,6]
[312869583,1706383845423,-1000.0,0.00052,7]
[312869584,1706383845432,-2000.0,0.00052,2]